Workbook

Sheet Sheet1
A1: 普定县2019年下半年事业单位面向社会公开招聘工作人员总成绩
A2: 序号 | B2: 准考证号 | C2: 姓名 | D2: 报考单位及代码 | E2: 报考职位及代码 | F2: 考场 | G2: 笔试成绩 | H2: 笔试折算成绩 | I2: 面试成绩 | J2: 面试折算成绩 | K2: 总分 | L2: 考场平均分
A3: 1 | B3: 10125284105 | C3: 谢旭 | D3: 301普定县定南街道鑫旺政务服务中心 | E3: 01管理岗位 | F3: 第一考场 | G3: 116 | H3: =G3/150%*60% -> 46.40 | I3: 85.20 | J3: =I3*40% -> 34.08 | K3: 80.48 | L3: 79.61
A4: 2 | B4: 10125283805 | C4: 石倩 | D4: 301普定县定南街道鑫旺政务服务中心 | E4: 01管理岗位 | F4: 第一考场 | G4: 102.5 | H4: 41.00 | I4: 77.00 | J4: 30.80 | K4: 71.80 | L4: 79.61
A5: 3 | B5: 10125284127 | C5: 肖钰臣 | D5: 301普定县定南街道鑫旺政务服务中心 | E5: 01管理岗位 | F5: 第一考场 | G5: 100.5 | H5: 40.20 | I5: 70.60 | J5: 28.24 | K5: 68.44 | L5: 79.61
A6: 4 | B6: 10125281210 | C6: 袁欣 | D6: 301普定县定南街道鑫旺政务服务中心 | E6: 02管理岗位 | F6: 第一考场 | G6: 106 | H6: 42.40 | I6: 85.40 | J6: 34.16 | K6: 76.56 | L6: 79.61
A7: 5 | B7: 10125290701 | C7: 谢兴德 | D7: 301普定县定南街道鑫旺政务服务中心 | E7: 02管理岗位 | F7: 第一考场 | G7: 102.5 | H7: 41.00 | I7: 82.20 | J7: 32.88 | K7: 73.88 | L7: 79.61
A8: 6 | B8: 10125240105 | C8: 陈俊 | D8: 301普定县定南街道鑫旺政务服务中心 | E8: 02管理岗位 | F8: 第一考场 | G8: 99 | H8: 39.60 | I8: 76.20 | J8: 30.48 | K8: 70.08 | L8: 79.61
A9: 7 | B9: 10125282214 | C9: 毛永红 | D9: 301普定县定南街道鑫旺政务服务中心 | E9: 03管理岗位 | F9: 第一考场 | G9: 98.5 | H9: 39.40 | I9: 82.00 | J9: 32.80 | K9: 72.20 | L9: 79.61
A10: 8 | B10: 10125290224 | C10: 何佳燕 | D10: 301普定县定南街道鑫旺政务服务中心 | E10: 03管理岗位 | F10: 第一考场 | G10: 92.5 | H10: 37.00 | I10: 77.40 | J10: 30.96 | K10: 67.96 | L10: 79.61
A11: 9 | B11: 10125243305 | C11: 周妮 | D11: 301普定县定南街道鑫旺政务服务中心 | E11: 03管理岗位 | F11: 第一考场 | G11: 90 | H11: 36.00 | I11: 79.00 | J11: 31.60 | K11: 67.60 | L11: 79.61
A12: 10 | B12: 10125291006 | C12: 熊忠婷 | D12: 301普定县定南街道鑫旺政务服务中心 | E12: 04管理岗位 | F12: 第一考场 | G12: 98.5 | H12: 39.40 | I12: 77.80 | J12: 31.12 | K12: 70.52 | L12: 79.61
A13: 11 | B13: 10125241322 | C13: 杨慧 | D13: 301普定县定南街道鑫旺政务服务中心 | E13: 04管理岗位 | F13: 第一考场 | G13: 98.5 | H13: 39.40 | I13: 缺考 | J13: 缺考 | K13: 39.40 | L13: 79.61
A14: 12 | B14: 10125293401 | C14: 王珍胜 | D14: 301普定县定南街道鑫旺政务服务中心 | E14: 04管理岗位 | F14: 第一考场 | G14: 97.5 | H14: 39.00 | I14: 84.60 | J14: =I14*40% -> 33.84 | K14: 72.84 | L14: 79.61
A15: 13 | B15: 10125245009 | C15: 冷炫锋 | D15: 301普定县定南街道鑫旺政务服务中心 | E15: 05管理岗位 | F15: 第一考场 | G15: 81 | H15: 32.40 | I15: 75.20 | J15: 30.08 | K15: 62.48 | L15: 79.61
A16: 14 | B16: 10125284317 | C16: 肖安学 | D16: 301普定县定南街道鑫旺政务服务中心 | E16: 05管理岗位 | F16: 第一考场 | G16: 80 | H16: 32.00 | I16: 78.20 | J16: 31.28 | K16: 63.28 | L16: 79.61
A17: 15 | B17: 10125240320 | C17: 王江华 | D17: 301普定县定南街道鑫旺政务服务中心 | E17: 05管理岗位 | F17: 第一考场 | G17: 78 | H17: 31.20 | I17: 75.20 | J17: 30.08 | K17: 61.28 | L17: 79.61
A18: 16 | B18: 10125244817 | C18: 张丽敏 | D18: 302普定县财政局黄桶街道办事处分局 | E18: 01管理岗位 | F18: 第一考场 | G18: 103 | H18: 41.20 | I18: 82.40 | J18: 32.96 | K18: 74.16 | L18: 79.61
A19: 17 | B19: 10125243208 | C19: 杨丹 | D19: 302普定县财政局黄桶街道办事处分局 | E19: 01管理岗位 | F19: 第一考场 | G19: 103 | H19: 41.20 | I19: 85.40 | J19: 34.16 | K19: 75.36 | L19: 79.61
A20: 18 | B20: 10125240102 | C20: 王玉仁 | D20: 302普定县财政局黄桶街道办事处分局 | E20: 01管理岗位 | F20: 第一考场 | G20: 102.5 | H20: 41.00 | I20: 79.60 | J20: 31.84 | K20: 72.84 | L20: 79.61
A21: 19 | B21: 10125240106 | C21: 张雯雯 | D21: 303普定县穿洞街道办事处科技宣教文化信息服务中心 | E21: 01管理岗位 | F21: 第二考场 | G21: 112 | H21: 44.80 | I21: 78.40 | J21: 31.36 | K21: 76.16 | L21: 79.09
A22: 20 | B22: 10125294706 | C22: 郭振源 | D22: 303普定县穿洞街道办事处科技宣教文化信息服务中心 | E22: 01管理岗位 | F22: 第二考场 | G22: 111 | H22: 44.40 | I22: 81.40 | J22: 32.56 | K22: 76.96 | L22: 79.09
A23: 21 | B23: 10125285216 | C23: 程涛 | D23: 303普定县穿洞街道办事处科技宣教文化信息服务中心 | E23: 01管理岗位 | F23: 第二考场 | G23: 109 | H23: 43.60 | I23: 76.80 | J23: 30.72 | K23: 74.32 | L23: 79.09
A24: 22 | B24: 10125242330 | C24: 罗斯栩 | D24: 304普定县财政局穿洞街道办事处分局 | E24: 01管理岗位 | F24: 第二考场 | G24: 106 | H24: 42.40 | I24: 82.00 | J24: 32.80 | K24: 75.20 | L24: 79.09
A25: 23 | B25: 10125291507 | C25: 方雪蒙 | D25: 304普定县财政局穿洞街道办事处分局 | E25: 01管理岗位 | F25: 第二考场 | G25: 103 | H25: 41.20 | I25: 78.60 | J25: 31.44 | K25: 72.64 | L25: 79.09
A26: 24 | B26: 10125242228 | C26: 高家娥 | D26: 304普定县财政局穿洞街道办事处分局 | E26: 01管理岗位 | F26: 第二考场 | G26: 101.5 | H26: 40.60 | I26: 77.20 | J26: 30.88 | K26: 71.48 | L26: 79.09
A27: 25 | B27: 10125296015 | C27: 支太阳 | D27: 305普定县玉秀街道办事处科技宣教文化信息服务中心 | E27: 01管理岗位 | F27: 第二考场 | G27: 110 | H27: 44.00 | I27: 76.40 | J27: 30.56 | K27: 74.56 | L27: 79.09
A28: 26 | B28: 10125292904 | C28: 郭璇 | D28: 305普定县玉秀街道办事处科技宣教文化信息服务中心 | E28: 01管理岗位 | F28: 第二考场 | G28: 108.5 | H28: 43.40 | I28: 78.60 | J28: 31.44 | K28: 74.84 | L28: 79.09
A29: 27 | B29: 10125243511 | C29: 罗荣松 | D29: 305普定县玉秀街道办事处科技宣教文化信息服务中心 | E29: 01管理岗位 | F29: 第二考场 | G29: 104 | H29: 41.60 | I29: 74.00 | J29: 29.60 | K29: 71.20 | L29: 79.09
A30: 28 | B30: 10125284406 | C30: 鄢金泉 | D30: 306普定县玉秀街道办事处退役军人服务站 | E30: 01管理岗位 | F30: 第二考场 | G30: 113 | H30: 45.20 | I30: 78.20 | J30: 31.28 | K30: 76.48 | L30: 79.09
A31: 29 | B31: 10125294427 | C31: 李佳 | D31: 306普定县玉秀街道办事处退役军人服务站 | E31: 01管理岗位 | F31: 第二考场 | G31: 112 | H31: 44.80 | I31: 82.00 | J31: 32.80 | K31: 77.60 | L31: 79.09
A32: 30 | B32: 10125292318 | C32: 杨波涛 | D32: 306普定县玉秀街道办事处退役军人服务站 | E32: 01管理岗位 | F32: 第二考场 | G32: 110 | H32: 44.00 | I32: 75.40 | J32: 30.16 | K32: 74.16 | L32: 79.09
A33: 31 | B33: 10125281217 | C33: 刘辰 | D33: 306普定县玉秀街道办事处退役军人服务站 | E33: 01管理岗位 | F33: 第二考场 | G33: 109 | H33: 43.60 | I33: 76.40 | J33: 30.56 | K33: 74.16 | L33: 79.09
A34: 32 | B34: 10125245611 | C34: 张丹 | D34: 306普定县玉秀街道办事处退役军人服务站 | E34: 01管理岗位 | F34: 第二考场 | G34: 109 | H34: 43.60 | I34: 80.20 | J34: 32.08 | K34: 75.68 | L34: 79.09
A35: 33 | B35: 10125293823 | C35: 杨念 | D35: 306普定县玉秀街道办事处退役军人服务站 | E35: 01管理岗位 | F35: 第二考场 | G35: 108.5 | H35: 43.40 | I35: 85.60 | J35: 34.24 | K35: 77.64 | L35: 79.09
A36: 34 | B36: 10125293120 | C36: 向影影 | D36: 306普定县玉秀街道办事处退役军人服务站 | E36: 01管理岗位 | F36: 第二考场 | G36: 108.5 | H36: 43.40 | I36: 77.00 | J36: 30.80 | K36: 74.20 | L36: 79.09
A37: 35 | B37: 10125242413 | C37: 黄凯 | D37: 307普定县玉秀街道办事处政务服务中心 | E37: 01管理岗位 | F37: 第二考场 | G37: 104 | H37: 41.60 | I37: 80.80 | J37: 32.32 | K37: 73.92 | L37: 79.09
A38: 36 | B38: 10125291610 | C38: 吕晓雅 | D38: 307普定县玉秀街道办事处政务服务中心 | E38: 01管理岗位 | F38: 第二考场 | G38: 103.5 | H38: 41.40 | I38: 84.00 | J38: 33.60 | K38: 75.00 | L38: 79.09
A39: 37 | B39: 10125242809 | C39: 毛蓉 | D39: 307普定县玉秀街道办事处政务服务中心 | E39: 01管理岗位 | F39: 第二考场 | G39: 102 | H39: 40.80 | I39: 79.80 | J39: 31.92 | K39: 72.72 | L39: 79.09
A40: 38 | B40: 10125240520 | C40: 韩发宪 | D40: 308普定县玉秀街道办事处水利和移民工作站 | E40: 01专业技术岗位 | F40: 第三考场 | G40: 98.5 | H40: 39.40 | I40: 79.60 | J40: 31.84 | K40: 71.24 | L40: 78.63
A41: 39 | B41: 10125285308 | C41: 吴光跃 | D41: 308普定县玉秀街道办事处水利和移民工作站 | E41: 01专业技术岗位 | F41: 第三考场 | G41: 96.5 | H41: 38.60 | I41: 74.40 | J41: 29.76 | K41: 68.36 | L41: 78.63
A42: 40 | B42: 10125282623 | C42: 尹学银 | D42: 308普定县玉秀街道办事处水利和移民工作站 | E42: 01专业技术岗位 | F42: 第三考场 | G42: 90.5 | H42: 36.20 | I42: 77.80 | J42: 31.12 | K42: 67.32 | L42: 78.63
A43: 41 | B43: 10125281106 | C43: 赵国圣 | D43: 308普定县玉秀街道办事处水利和移民工作站 | E43: 01专业技术岗位 | F43: 第三考场 | G43: 90 | H43: 36.00 | I43: 79.00 | J43: 31.60 | K43: 67.60 | L43: 78.63
A44: 42 | B44: 10125294420 | C44: 王从发 | D44: 308普定县玉秀街道办事处水利和移民工作站 | E44: 01专业技术岗位 | F44: 第三考场 | G44: 89.5 | H44: 35.80 | I44: 79.40 | J44: 31.76 | K44: 67.56 | L44: 78.63
A45: 43 | B45: 10125283623 | C45: 罗正能 | D45: 308普定县玉秀街道办事处水利和移民工作站 | E45: 01专业技术岗位 | F45: 第三考场 | G45: 88 | H45: 35.20 | I45: 缺考 | J45: 缺考 | K45: 35.20 | L45: 78.63
A46: 44 | B46: 10125284415 | C46: 姜翰林 | D46: 308普定县玉秀街道办事处水利和移民工作站 | E46: 01专业技术岗位 | F46: 第三考场 | G46: 88 | H46: 35.20 | I46: 81.80 | J46: =I46*40% -> 32.72 | K46: 67.92 | L46: 78.63
A47: 45 | B47: 10125295505 | C47: 王彩 | D47: 308普定县玉秀街道办事处水利和移民工作站 | E47: 01专业技术岗位 | F47: 第三考场 | G47: 86.5 | H47: 34.60 | I47: 72.80 | J47: =I47*40% -> 29.12 | K47: 63.72 | L47: 78.63
A48: 46 | B48: 10125243624 | C48: 周舟 | D48: 308普定县玉秀街道办事处水利和移民工作站 | E48: 01专业技术岗位 | F48: 第三考场 | G48: 83.5 | H48: 33.40 | I48: 76.20 | J48: =I48*40% -> 30.48 | K48: 63.88 | L48: 78.63
A49: 47 | B49: 10125282819 | C49: 张贤贤 | D49: 308普定县玉秀街道办事处水利和移民工作站 | E49: 01专业技术岗位 | F49: 第三考场 | G49: 83.5 | H49: 33.40 | I49: 缺考 | J49: 缺考 | K49: 33.40 | L49: 78.63
A50: 48 | B50: 10125241225 | C50: 严美菊 | D50: 308普定县玉秀街道办事处水利和移民工作站 | E50: 01专业技术岗位 | F50: 第三考场 | G50: 83.5 | H50: 33.40 | I50: 78.40 | J50: =I50*40% -> 31.36 | K50: 64.76 | L50: 78.63
A51: 49 | B51: 10125295620 | C51: 刘伟 | D51: 309普定县玉秀街道办事处林业和环境保护工作站 | E51: 01专业技术岗位 | F51: 第三考场 | G51: 86.5 | H51: 34.60 | I51: 83.20 | J51: 33.28 | K51: 67.88 | L51: 78.63
A52: 50 | B52: 10125244706 | C52: 唐乙民 | D52: 309普定县玉秀街道办事处林业和环境保护工作站 | E52: 01专业技术岗位 | F52: 第三考场 | G52: 85 | H52: 34.00 | I52: 79.00 | J52: 31.60 | K52: 65.60 | L52: 78.63
A53: 51 | B53: 10125243521 | C53: 何杨 | D53: 309普定县玉秀街道办事处林业和环境保护工作站 | E53: 01专业技术岗位 | F53: 第三考场 | G53: 82 | H53: 32.80 | I53: 74.00 | J53: 29.60 | K53: 62.40 | L53: 78.63
A54: 52 | B54: 10125244704 | C54: 李凯兰 | D54: 309普定县玉秀街道办事处林业和环境保护工作站 | E54: 01专业技术岗位 | F54: 第三考场 | G54: 80 | H54: 32.00 | I54: 78.80 | J54: 31.52 | K54: 63.52 | L54: 78.63
A55: 53 | B55: 10125240211 | C55: 黄铭艺 | D55: 309普定县玉秀街道办事处林业和环境保护工作站 | E55: 01专业技术岗位 | F55: 第三考场 | G55: 80 | H55: 32.00 | I55: 72.80 | J55: 29.12 | K55: 61.12 | L55: 78.63
A56: 54 | B56: 10125280326 | C56: 杨静 | D56: 309普定县玉秀街道办事处林业和环境保护工作站 | E56: 01专业技术岗位 | F56: 第三考场 | G56: 80 | H56: 32.00 | I56: 79.40 | J56: 31.76 | K56: 63.76 | L56: 78.63
A57: 55 | B57: 10125280808 | C57: 张文龙 | D57: 310普定县马官镇水利和移民工作站 | E57: 01管理岗位 | F57: 第三考场 | G57: 103.5 | H57: 41.40 | I57: 81.60 | J57: 32.64 | K57: 74.04 | L57: 78.63
A58: 56 | B58: 10125240708 | C58: 覃坤 | D58: 310普定县马官镇水利和移民工作站 | E58: 01管理岗位 | F58: 第三考场 | G58: 101.5 | H58: 40.60 | I58: 85.00 | J58: 34.00 | K58: 74.60 | L58: 78.63
A59: 57 | B59: 10125290915 | C59: 吕波 | D59: 310普定县马官镇水利和移民工作站 | E59: 01管理岗位 | F59: 第三考场 | G59: 98 | H59: 39.20 | I59: 82.20 | J59: 32.88 | K59: 72.08 | L59: 78.63
A60: 58 | B60: 10125281006 | C60: 陆纯 | D60: 311普定县马官镇林业和环境保护工作站 | E60: 01管理岗位 | F60: 第四考场 | G60: 108.5 | H60: 43.40 | I60: 85.20 | J60: 34.08 | K60: 77.48 | L60: 83.82
A61: 59 | B61: 10125293702 | C61: 温志强 | D61: 311普定县马官镇林业和环境保护工作站 | E61: 01管理岗位 | F61: 第四考场 | G61: 104.5 | H61: 41.80 | I61: 86.40 | J61: 34.56 | K61: 76.36 | L61: 83.82
A62: 60 | B62: 10125281119 | C62: 肖敏 | D62: 311普定县马官镇林业和环境保护工作站 | E62: 01管理岗位 | F62: 第四考场 | G62: 104 | H62: 41.60 | I62: 85.80 | J62: 34.32 | K62: 75.92 | L62: 83.82
A63: 61 | B63: 10125291202 | C63: 马永磊 | D63: 312普定县马官镇农业服务中心 | E63: 01管理岗位 | F63: 第四考场 | G63: 114 | H63: 45.60 | I63: 80.20 | J63: 32.08 | K63: 77.68 | L63: 83.82
A64: 62 | B64: 10125240507 | C64: 王雨 | D64: 312普定县马官镇农业服务中心 | E64: 01管理岗位 | F64: 第四考场 | G64: 107.5 | H64: 43.00 | I64: 87.00 | J64: 34.80 | K64: 77.80 | L64: 83.82
A65: 63 | B65: 10125283829 | C65: 文昌朋 | D65: 312普定县马官镇农业服务中心 | E65: 01管理岗位 | F65: 第四考场 | G65: 104.5 | H65: 41.80 | I65: 87.00 | J65: 34.80 | K65: 76.60 | L65: 83.82
A66: 64 | B66: 10125281709 | C66: 彭茜 | D66: 312普定县马官镇农业服务中心 | E66: 02专业技术岗位 | F66: 第四考场 | G66: 105 | H66: 42.00 | I66: 85.60 | J66: 34.24 | K66: 76.24 | L66: 83.82
A67: 65 | B67: 10125292907 | C67: 黄顺丰 | D67: 312普定县马官镇农业服务中心 | E67: 02专业技术岗位 | F67: 第四考场 | G67: 98.5 | H67: =G67/150%*60% -> 39.40 | I67: 80.40 | J67: 32.16 | K67: 71.56 | L67: 83.82
A68: 66 | B68: 10125280809 | C68: 陈勇 | D68: 312普定县马官镇农业服务中心 | E68: 02专业技术岗位 | F68: 第四考场 | G68: 96 | H68: 38.40 | I68: 75.20 | J68: 30.08 | K68: 68.48 | L68: 83.82
A69: 67 | B69: 10125291626 | C69: 李若竹 | D69: 313马官镇人力资源和社会保障服务中心 | E69: 01专业技术岗位 | F69: 第四考场 | G69: 105.5 | H69: 42.20 | I69: 76.80 | J69: 30.72 | K69: 72.92 | L69: 83.82
A70: 68 | B70: 10125241219 | C70: 曹瑶 | D70: 313马官镇人力资源和社会保障服务中心 | E70: 01专业技术岗位 | F70: 第四考场 | G70: 103.5 | H70: 41.40 | I70: 82.00 | J70: 32.80 | K70: 74.20 | L70: 83.82
A71: 69 | B71: 10125285206 | C71: 李如钰 | D71: 313马官镇人力资源和社会保障服务中心 | E71: 01专业技术岗位 | F71: 第四考场 | G71: 102.5 | H71: 41.00 | I71: 83.20 | J71: 33.28 | K71: 74.28 | L71: 83.82
A72: 70 | B72: 10125294218 | C72: 曹熙 | D72: 314普定县财政局马官镇分局 | E72: 01管理岗位 | F72: 第四考场 | G72: 102.5 | H72: 41.00 | I72: 82.40 | J72: 32.96 | K72: 73.96 | L72: 83.82
A73: 71 | B73: 10125284703 | C73: 韩璘 | D73: 314普定县财政局马官镇分局 | E73: 01管理岗位 | F73: 第四考场 | G73: 100 | H73: 40.00 | I73: 88.40 | J73: 35.36 | K73: 75.36 | L73: 83.82
A74: 72 | B74: 10125244903 | C74: 皮康艳 | D74: 314普定县财政局马官镇分局 | E74: 01管理岗位 | F74: 第四考场 | G74: 95.5 | H74: 38.20 | I74: 缺考 | J74: 缺考 | K74: 38.20 | L74: 83.82
A75: 73 | B75: 10125244725 | C75: 贺韵 | D75: 315普定县财政局化处镇分局 | E75: 01管理岗位 | F75: 第四考场 | G75: 109 | H75: 43.60 | I75: 88.20 | J75: =I75*40% -> 35.28 | K75: 78.88 | L75: 83.82
A76: 74 | B76: 10125295328 | C76: 陈杨洋 | D76: 315普定县财政局化处镇分局 | E76: 01管理岗位 | F76: 第四考场 | G76: 107 | H76: 42.80 | I76: 86.20 | J76: =I76*40% -> 34.48 | K76: 77.28 | L76: 83.82
A77: 75 | B77: 10125282202 | C77: 陈翔 | D77: 315普定县财政局化处镇分局 | E77: 01管理岗位 | F77: 第四考场 | G77: 103 | H77: 41.20 | I77: 86.60 | J77: =I77*40% -> 34.64 | K77: 75.84 | L77: 83.82
A78: 76 | B78: 10125292501 | C78: 林贝 | D78: 315普定县财政局化处镇分局 | E78: 02管理岗位 | F78: 第四考场 | G78: 107.5 | H78: 43.00 | I78: 85.60 | J78: =I78*40% -> 34.24 | K78: 77.24 | L78: 83.82
A79: 77 | B79: 10125292120 | C79: 侯忠霞 | D79: 315普定县财政局化处镇分局 | E79: 02管理岗位 | F79: 第四考场 | G79: 102.5 | H79: 41.00 | I79: 80.40 | J79: =I79*40% -> 32.16 | K79: 73.16 | L79: 83.82
A80: 78 | B80: 10125283927 | C80: 胡佳艳 | D80: 315普定县财政局化处镇分局 | E80: 02管理岗位 | F80: 第四考场 | G80: 100 | H80: 40.00 | I80: 缺考 | J80: 缺考 | K80: 40.00 | L80: 83.82
A81: 79 | B81: 10125290605 | C81: 周桃 | D81: 316普定县化处镇水利和移民工作站 | E81: 01管理岗位 | F81: 第五考场 | G81: 102.5 | H81: 41.00 | I81: 78.20 | J81: =I81*40% -> 31.28 | K81: 72.28 | L81: 78.41
A82: 80 | B82: 10125293523 | C82: 张磊 | D82: 316普定县化处镇水利和移民工作站 | E82: 01管理岗位 | F82: 第五考场 | G82: 98 | H82: 39.20 | I82: 81.40 | J82: =I82*40% -> 32.56 | K82: 71.76 | L82: 78.41
A83: 81 | B83: 10125290611 | C83: 娄文念 | D83: 316普定县化处镇水利和移民工作站 | E83: 01管理岗位 | F83: 第五考场 | G83: 98 | H83: 39.20 | I83: 76.20 | J83: =I83*40% -> 30.48 | K83: 69.68 | L83: 78.41
A84: 82 | B84: 10125280423 | C84: 吴畅 | D84: 317化处镇人力资源和社会保障服务中心 | E84: 01管理岗位 | F84: 第五考场 | G84: 109.5 | H84: 43.80 | I84: 80.40 | J84: =I84*40% -> 32.16 | K84: 75.96 | L84: 78.41
A85: 83 | B85: 10125294905 | C85: 余洋 | D85: 317化处镇人力资源和社会保障服务中心 | E85: 01管理岗位 | F85: 第五考场 | G85: 104 | H85: 41.60 | I85: 缺考 | J85: 缺考 | K85: 41.60 | L85: 78.41
A86: 84 | B86: 10125281714 | C86: 刘朝会 | D86: 317化处镇人力资源和社会保障服务中心 | E86: 01管理岗位 | F86: 第五考场 | G86: 102 | H86: 40.80 | I86: 76.80 | J86: =I86*40% -> 30.72 | K86: 71.52 | L86: 78.41
A87: 85 | B87: 10125245024 | C87: 张倩 | D87: 317化处镇人力资源和社会保障服务中心 | E87: 02专业技术岗位 | F87: 第五考场 | G87: 100 | H87: 40.00 | I87: 78.80 | J87: 31.52 | K87: 71.52 | L87: 78.41
A88: 86 | B88: 10125241410 | C88: 杨远翔 | D88: 317化处镇人力资源和社会保障服务中心 | E88: 02专业技术岗位 | F88: 第五考场 | G88: 99 | H88: 39.60 | I88: 73.20 | J88: 29.28 | K88: 68.88 | L88: 78.41
A89: 87 | B89: 10125290509 | C89: 段翠芳 | D89: 317化处镇人力资源和社会保障服务中心 | E89: 02专业技术岗位 | F89: 第五考场 | G89: 96 | H89: 38.40 | I89: 71.40 | J89: 28.56 | K89: 66.96 | L89: 78.41
A90: 88 | B90: 10125291807 | C90: 宾建华 | D90: 318普定县化处镇林业和环境保护工作站 | E90: 01专业技术岗位 | F90: 第五考场 | G90: 103.5 | H90: 41.40 | I90: 69.40 | J90: 27.76 | K90: 69.16 | L90: 78.41
A91: 89 | B91: 10125290223 | C91: 张启华 | D91: 318普定县化处镇林业和环境保护工作站 | E91: 01专业技术岗位 | F91: 第五考场 | G91: 101 | H91: 40.40 | I91: 78.80 | J91: 31.52 | K91: 71.92 | L91: 78.41
A92: 90 | B92: 10125294620 | C92: 吴小青 | D92: 318普定县化处镇林业和环境保护工作站 | E92: 01专业技术岗位 | F92: 第五考场 | G92: 90 | H92: 36.00 | I92: 73.60 | J92: 29.44 | K92: 65.44 | L92: 78.41
A93: 91 | B93: 10125281904 | C93: 陈黎 | D93: 319普定县化处镇退役军人服务站 | E93: 01管理岗位 | F93: 第五考场 | G93: 106.5 | H93: 42.60 | I93: 80.20 | J93: 32.08 | K93: 74.68 | L93: 78.41
A94: 92 | B94: 10125296317 | C94: 张涛 | D94: 319普定县化处镇退役军人服务站 | E94: 01管理岗位 | F94: 第五考场 | G94: 105.5 | H94: 42.20 | I94: 82.40 | J94: 32.96 | K94: 75.16 | L94: 78.41
A95: 93 | B95: 10125293914 | C95: 张云 | D95: 319普定县化处镇退役军人服务站 | E95: 01管理岗位 | F95: 第五考场 | G95: 105.5 | H95: 42.20 | I95: 86.40 | J95: 34.56 | K95: 76.76 | L95: 78.41
A96: 94 | B96: 10125243209 | C96: 何娟 | D96: 319普定县化处镇退役军人服务站 | E96: 02管理岗位 | F96: 第五考场 | G96: 103.5 | H96: 41.40 | I96: 80.80 | J96: 32.32 | K96: 73.72 | L96: 78.41
A97: 95 | B97: 10125294720 | C97: 张雄 | D97: 319普定县化处镇退役军人服务站 | E97: 02管理岗位 | F97: 第五考场 | G97: 101 | H97: 40.40 | I97: 79.00 | J97: 31.60 | K97: 72.00 | L97: 78.41
A98: 96 | B98: 10125281507 | C98: 孔丹 | D98: 319普定县化处镇退役军人服务站 | E98: 02管理岗位 | F98: 第五考场 | G98: 99 | H98: 39.60 | I98: 86.00 | J98: 34.40 | K98: 74.00 | L98: 78.41
A99: 97 | B99: 10125282029 | C99: 储丽嫱 | D99: 320普定县马场镇农业服务中心 | E99: 01管理岗位 | F99: 第六考场 | G99: 107 | H99: 42.80 | I99: 79.80 | J99: 31.92 | K99: 74.72 | L99: 78.37
A100: 98 | B100: 10125290222 | C100: 韦易宏 | D100: 320普定县马场镇农业服务中心 | E100: 01管理岗位 | F100: 第六考场 | G100: 102.5 | H100: 41.00 | I100: 83.40 | J100: 33.36 | K100: 74.36 | L100: 78.37
A101: 99 | B101: 10125291219 | C101: 韦正敏 | D101: 320普定县马场镇农业服务中心 | E101: 01管理岗位 | F101: 第六考场 | G101: 102.5 | H101: 41.00 | I101: 81.40 | J101: 32.56 | K101: 73.56 | L101: 78.37
A102: 100 | B102: 10125240420 | C102: 樊娟 | D102: 321普定县马场镇村镇建设管理站 | E102: 01管理岗位 | F102: 第六考场 | G102: 103 | H102: 41.20 | I102: 77.80 | J102: 31.12 | K102: 72.32 | L102: 78.37
A103: 101 | B103: 10125285018 | C103: 冯超 | D103: 321普定县马场镇村镇建设管理站 | E103: 01管理岗位 | F103: 第六考场 | G103: 103 | H103: 41.20 | I103: 86.00 | J103: 34.40 | K103: 75.60 | L103: 78.37
A104: 102 | B104: 10125282730 | C104: 邵富源 | D104: 321普定县马场镇村镇建设管理站 | E104: 01管理岗位 | F104: 第六考场 | G104: 101.5 | H104: 40.60 | I104: 78.20 | J104: 31.28 | K104: 71.88 | L104: 78.37
A105: 103 | B105: 10125241315 | C105: 姚秋霞 | D105: 322普定县马场镇水利和移民工作站 | E105: 01专业技术岗位 | F105: 第六考场 | G105: 105.5 | H105: 42.20 | I105: 82.40 | J105: 32.96 | K105: 75.16 | L105: 78.37
A106: 104 | B106: 10125283610 | C106: 张一波 | D106: 322普定县马场镇水利和移民工作站 | E106: 01专业技术岗位 | F106: 第六考场 | G106: 104.5 | H106: 41.80 | I106: 80.20 | J106: 32.08 | K106: 73.88 | L106: 78.37
A107: 105 | B107: 10125243612 | C107: 丁红东 | D107: 322普定县马场镇水利和移民工作站 | E107: 01专业技术岗位 | F107: 第六考场 | G107: 103.5 | H107: 41.40 | I107: 79.60 | J107: 31.84 | K107: 73.24 | L107: 78.37
A108: 106 | B108: 10125241019 | C108: 王柏泉 | D108: 323普定县马场镇林业和环境保护工作站 | E108: 01专业技术岗位 | F108: 第六考场 | G108: 101.5 | H108: 40.60 | I108: 77.80 | J108: 31.12 | K108: 71.72 | L108: 78.37
A109: 107 | B109: 10125241202 | C109: 杨华丽 | D109: 323普定县马场镇林业和环境保护工作站 | E109: 01专业技术岗位 | F109: 第六考场 | G109: 93 | H109: 37.20 | I109: 72.80 | J109: 29.12 | K109: 66.32 | L109: 78.37
A110: 108 | B110: 10125296127 | C110: 梁锦秋 | D110: 323普定县马场镇林业和环境保护工作站 | E110: 01专业技术岗位 | F110: 第六考场 | G110: 90 | H110: 36.00 | I110: 73.60 | J110: 29.44 | K110: 65.44 | L110: 78.37
A111: 109 | B111: 10125283217 | C111: 何珍 | D111: 323普定县马场镇林业和环境保护工作站 | E111: 01专业技术岗位 | F111: 第六考场 | G111: 89.5 | H111: 35.80 | I111: 77.80 | J111: 31.12 | K111: 66.92 | L111: 78.37
A112: 110 | B112: 10125245315 | C112: 黄寅龙 | D112: 323普定县马场镇林业和环境保护工作站 | E112: 01专业技术岗位 | F112: 第六考场 | G112: 88.5 | H112: 35.40 | I112: 86.20 | J112: 34.48 | K112: 69.88 | L112: 78.37
A113: 111 | B113: 10125291422 | C113: 卢会 | D113: 323普定县马场镇林业和环境保护工作站 | E113: 01专业技术岗位 | F113: 第六考场 | G113: 88 | H113: 35.20 | I113: 74.20 | J113: 29.68 | K113: 64.88 | L113: 78.37
A114: 112 | B114: 10125290107 | C114: 陈华 | D114: 324普定县马场镇财政分局 | E114: 01管理岗位 | F114: 第六考场 | G114: 70 | H114: 28.00 | I114: 73.60 | J114: 29.44 | K114: 57.44 | L114: 78.37
A115: 113 | B115: 10125284216 | C115: 肖霞 | D115: 324普定县马场镇财政分局 | E115: 02管理岗位 | F115: 第六考场 | G115: 101 | H115: 40.40 | I115: 缺考 | J115: 缺考 | K115: 40.40 | L115: 78.37
A116: 114 | B116: 10125293316 | C116: 唐维香 | D116: 324普定县马场镇财政分局 | E116: 02管理岗位 | F116: 第六考场 | G116: 99 | H116: 39.60 | I116: 74.60 | J116: =I116*40% -> 29.84 | K116: 69.44 | L116: 78.37
A117: 115 | B117: 10125291529 | C117: 郭亚丽 | D117: 324普定县马场镇财政分局 | E117: 02管理岗位 | F117: 第六考场 | G117: 97.5 | H117: 39.00 | I117: 71.80 | J117: 28.72 | K117: 67.72 | L117: 78.37
A118: 116 | B118: 10125281128 | C118: 杨倩 | D118: 325普定县白岩镇水利和移民工作站 | E118: 01专业技术岗位 | F118: 第六考场 | G118: 98 | H118: 39.20 | I118: 77.80 | J118: 31.12 | K118: 70.32 | L118: 78.37
A119: 117 | B119: 10125280522 | C119: 向林林 | D119: 326普定县白岩镇人力资源和社会保障服务中心 | E119: 01专业技术岗位 | F119: 第七考场 | G119: 110.5 | H119: 44.20 | I119: 76.40 | J119: 30.56 | K119: 74.76 | L119: 78.74
A120: 118 | B120: 10125290926 | C120: 陈再兰 | D120: 326普定县白岩镇人力资源和社会保障服务中心 | E120: 01专业技术岗位 | F120: 第七考场 | G120: 109 | H120: 43.60 | I120: 82.00 | J120: 32.80 | K120: 76.40 | L120: 78.74
A121: 119 | B121: 10125241612 | C121: 张家睿 | D121: 326普定县白岩镇人力资源和社会保障服务中心 | E121: 01专业技术岗位 | F121: 第七考场 | G121: 103 | H121: 41.20 | I121: 72.60 | J121: 29.04 | K121: 70.24 | L121: 78.74
A122: 120 | B122: 10125244019 | C122: 袁海恒 | D122: 327普定县白岩镇退役军人服务站 | E122: 01管理岗位 | F122: 第七考场 | G122: 114 | H122: 45.60 | I122: 83.80 | J122: 33.52 | K122: 79.12 | L122: 78.74
A123: 121 | B123: 10125243427 | C123: 张喆渊 | D123: 327普定县白岩镇退役军人服务站 | E123: 01管理岗位 | F123: 第七考场 | G123: 109 | H123: 43.60 | I123: 82.60 | J123: 33.04 | K123: 76.64 | L123: 78.74
A124: 122 | B124: 10125242712 | C124: 杨婷婷 | D124: 327普定县白岩镇退役军人服务站 | E124: 01管理岗位 | F124: 第七考场 | G124: 108 | H124: 43.20 | I124: 81.00 | J124: 32.40 | K124: 75.60 | L124: 78.74
A125: 123 | B125: 10125283725 | C125: 洪枣 | D125: 328普定县坪上镇村镇建设管理站 | E125: 01管理岗位 | F125: 第七考场 | G125: 91.5 | H125: 36.60 | I125: 78.20 | J125: 31.28 | K125: 67.88 | L125: 78.74
A126: 124 | B126: 10125240613 | C126: 李艳 | D126: 328普定县坪上镇村镇建设管理站 | E126: 01管理岗位 | F126: 第七考场 | G126: 87 | H126: 34.80 | I126: 80.20 | J126: 32.08 | K126: 66.88 | L126: 78.74
A127: 125 | B127: 10125282405 | C127: 李国应 | D127: 328普定县坪上镇村镇建设管理站 | E127: 01管理岗位 | F127: 第七考场 | G127: 78.5 | H127: 31.40 | I127: 缺考 | J127: 缺考 | K127: 31.40 | L127: 78.74
A128: 126 | B128: 10125243417 | C128: 项翥鹏 | D128: 329普定县坪上镇林业和环境保护工作站 | E128: 01管理岗位 | F128: 第七考场 | G128: 111 | H128: 44.40 | I128: 78.80 | J128: =I128*40% -> 31.52 | K128: 75.92 | L128: 78.74
A129: 127 | B129: 10125244518 | C129: 万东 | D129: 329普定县坪上镇林业和环境保护工作站 | E129: 01管理岗位 | F129: 第七考场 | G129: 107.5 | H129: 43.00 | I129: 84.40 | J129: 33.76 | K129: 76.76 | L129: 78.74
A130: 128 | B130: 10125280501 | C130: 郑鲜 | D130: 329普定县坪上镇林业和环境保护工作站 | E130: 01管理岗位 | F130: 第七考场 | G130: 107 | H130: 42.80 | I130: 76.00 | J130: 30.40 | K130: 73.20 | L130: 78.74
A131: 129 | B131: 10125293219 | C131: 张小怀 | D131: 329普定县坪上镇林业和环境保护工作站 | E131: 01管理岗位 | F131: 第七考场 | G131: 103.5 | H131: =G131/150%*60% -> 41.40 | I131: 79.40 | J131: 31.76 | K131: 73.16 | L131: 78.74
A132: 130 | B132: 10125241823 | C132: 程世宁 | D132: 329普定县坪上镇林业和环境保护工作站 | E132: 01管理岗位 | F132: 第七考场 | G132: 103 | H132: 41.20 | I132: 69.80 | J132: 27.92 | K132: 69.12 | L132: 78.74
A133: 131 | B133: 10125284828 | C133: 鄢凯 | D133: 329普定县坪上镇林业和环境保护工作站 | E133: 01管理岗位 | F133: 第七考场 | G133: 102.5 | H133: 41.00 | I133: 77.60 | J133: 31.04 | K133: 72.04 | L133: 78.74
A134: 132 | B134: 10125293024 | C134: 吴迷 | D134: 330普定县坪上镇科技宣教文化信息服务中心 | E134: 01管理岗位 | F134: 第七考场 | G134: 111 | H134: 44.40 | I134: 78.00 | J134: 31.20 | K134: 75.60 | L134: 78.74
A135: 133 | B135: 10125281105 | C135: 杨东金 | D135: 330普定县坪上镇科技宣教文化信息服务中心 | E135: 01管理岗位 | F135: 第七考场 | G135: 108.5 | H135: 43.40 | I135: 79.00 | J135: 31.60 | K135: 75.00 | L135: 78.74
A136: 134 | B136: 10125292324 | C136: 李自斌 | D136: 330普定县坪上镇科技宣教文化信息服务中心 | E136: 01管理岗位 | F136: 第七考场 | G136: 105 | H136: 42.00 | I136: 缺考 | J136: 缺考 | K136: 42.00 | L136: 78.74
A137: 135 | B137: 10125240822 | C137: 邓宇 | D137: 331普定县坪上镇人力资源和社会保障服务中心 | E137: 01管理岗位 | F137: 第八考场 | G137: 110 | H137: 44.00 | I137: 75.60 | J137: =I137*40% -> 30.24 | K137: 74.24 | L137: 76.73
A138: 136 | B138: 10125280211 | C138: 洪梦丽 | D138: 331普定县坪上镇人力资源和社会保障服务中心 | E138: 01管理岗位 | F138: 第八考场 | G138: 106.5 | H138: 42.60 | I138: 76.40 | J138: 30.56 | K138: 73.16 | L138: 76.73
A139: 137 | B139: 10125240230 | C139: 段玲 | D139: 331普定县坪上镇人力资源和社会保障服务中心 | E139: 01管理岗位 | F139: 第八考场 | G139: 99.5 | H139: 39.80 | I139: 77.20 | J139: 30.88 | K139: 70.68 | L139: 76.73
A140: 138 | B140: 10125280316 | C140: 王庆鹏 | D140: 331普定县坪上镇人力资源和社会保障服务中心 | E140: 02专业技术岗位 | F140: 第八考场 | G140: 94.5 | H140: 37.80 | I140: 77.80 | J140: 31.12 | K140: 68.92 | L140: 76.73
A141: 139 | B141: 10125280919 | C141: 王炀 | D141: 331普定县坪上镇人力资源和社会保障服务中心 | E141: 02专业技术岗位 | F141: 第八考场 | G141: 92 | H141: 36.80 | I141: 76.40 | J141: 30.56 | K141: 67.36 | L141: 76.73
A142: 140 | B142: 10125283102 | C142: 胡磊 | D142: 331普定县坪上镇人力资源和社会保障服务中心 | E142: 02专业技术岗位 | F142: 第八考场 | G142: 90.5 | H142: 36.20 | I142: 73.20 | J142: 29.28 | K142: 65.48 | L142: 76.73
A143: 141 | B143: 10125242717 | C143: 韦启龙 | D143: 332普定县鸡场坡镇村镇建设管理站 | E143: 01管理岗位 | F143: 第八考场 | G143: 106 | H143: 42.40 | I143: 81.80 | J143: 32.72 | K143: 75.12 | L143: 76.73
A144: 142 | B144: 10125242805 | C144: 卢鹏程 | D144: 332普定县鸡场坡镇村镇建设管理站 | E144: 01管理岗位 | F144: 第八考场 | G144: 100.5 | H144: 40.20 | I144: 77.40 | J144: 30.96 | K144: 71.16 | L144: 76.73
A145: 143 | B145: 10125242305 | C145: 伍廷建 | D145: 332普定县鸡场坡镇村镇建设管理站 | E145: 01管理岗位 | F145: 第八考场 | G145: 97.5 | H145: 39.00 | I145: 缺考 | J145: 缺考 | K145: 39.00 | L145: 76.73
A146: 144 | B146: 10125282305 | C146: 李思奇 | D146: 333普定县鸡场坡镇人力资源和社会保障服务中心 | E146: 01管理岗位 | F146: 第八考场 | G146: 104 | H146: 41.60 | I146: 83.40 | J146: =I146*40% -> 33.36 | K146: 74.96 | L146: 76.73
A147: 145 | B147: 10125284718 | C147: 程卓 | D147: 333普定县鸡场坡镇人力资源和社会保障服务中心 | E147: 01管理岗位 | F147: 第八考场 | G147: 100.5 | H147: 40.20 | I147: 80.60 | J147: =I147*40% -> 32.24 | K147: 72.44 | L147: 76.73
A148: 146 | B148: 10125282110 | C148: 吴光伟 | D148: 333普定县鸡场坡镇人力资源和社会保障服务中心 | E148: 01管理岗位 | F148: 第八考场 | G148: 99 | H148: 39.60 | I148: 缺考 | J148: 缺考 | K148: 39.60 | L148: 76.73
A149: 147 | B149: 10125243204 | C149: 宋杨 | D149: 333普定县鸡场坡镇人力资源和社会保障服务中心 | E149: 02专业技术岗位 | F149: 第八考场 | G149: 91 | H149: 36.40 | I149: 76.00 | J149: =I149*40% -> 30.40 | K149: 66.80 | L149: 76.73
A150: 148 | B150: 10125290111 | C150: 钱仁品 | D150: 333普定县鸡场坡镇人力资源和社会保障服务中心 | E150: 02专业技术岗位 | F150: 第八考场 | G150: 87 | H150: 34.80 | I150: 66.20 | J150: 26.48 | K150: 61.28 | L150: 76.73
A151: 149 | B151: 10125293419 | C151: 左甜 | D151: 333普定县鸡场坡镇人力资源和社会保障服务中心 | E151: 02专业技术岗位 | F151: 第八考场 | G151: 86 | H151: 34.40 | I151: 76.60 | J151: 30.64 | K151: 65.04 | L151: 76.73
A152: 150 | B152: 10125280315 | C152: 杜宇 | D152: 334普定县鸡场坡镇林业和环境保护工作站 | E152: 01管理岗位 | F152: 第八考场 | G152: 101.5 | H152: 40.60 | I152: 75.60 | J152: 30.24 | K152: 70.84 | L152: 76.73
A153: 151 | B153: 10125290414 | C153: 陈昌凯 | D153: 334普定县鸡场坡镇林业和环境保护工作站 | E153: 01管理岗位 | F153: 第八考场 | G153: 98.5 | H153: 39.40 | I153: 77.80 | J153: 31.12 | K153: 70.52 | L153: 76.73
A154: 152 | B154: 10125280924 | C154: 熊万华 | D154: 334普定县鸡场坡镇林业和环境保护工作站 | E154: 01管理岗位 | F154: 第八考场 | G154: 98 | H154: 39.20 | I154: 76.00 | J154: 30.40 | K154: 69.60 | L154: 76.73
A155: 153 | B155: 10125242511 | C155: 王凯 | D155: 335普定县补郎苗族乡人力资源和社会保障服务中心 | E155: 01管理岗位 | F155: 第八考场 | G155: 111.5 | H155: 44.60 | I155: 77.00 | J155: 30.80 | K155: 75.40 | L155: 76.73
A156: 154 | B156: 10125280408 | C156: 周炫宇 | D156: 335普定县补郎苗族乡人力资源和社会保障服务中心 | E156: 01管理岗位 | F156: 第八考场 | G156: 102.5 | H156: 41.00 | I156: 76.20 | J156: 30.48 | K156: 71.48 | L156: 76.73
A157: 155 | B157: 10125281619 | C157: 林梅 | D157: 335普定县补郎苗族乡人力资源和社会保障服务中心 | E157: 01管理岗位 | F157: 第八考场 | G157: 102.5 | H157: 41.00 | I157: 缺考 | J157: 缺考 | K157: 41.00 | L157: 76.73
A158: 156 | B158: 10125242010 | C158: 王定勇 | D158: 336普定县补郎苗族乡水利和移民工作站 | E158: 01管理岗位 | F158: 第九考场 | G158: 106.5 | H158: 42.60 | I158: 76.40 | J158: =I158*40% -> 30.56 | K158: 73.16 | L158: 76.48
A159: 157 | B159: 10125240911 | C159: 陈小美 | D159: 336普定县补郎苗族乡水利和移民工作站 | E159: 01管理岗位 | F159: 第九考场 | G159: 105 | H159: 42.00 | I159: 80.60 | J159: 32.24 | K159: 74.24 | L159: 76.48
A160: 158 | B160: 10125295204 | C160: 李乾胜 | D160: 336普定县补郎苗族乡水利和移民工作站 | E160: 01管理岗位 | F160: 第九考场 | G160: 102 | H160: 40.80 | I160: 82.00 | J160: 32.80 | K160: 73.60 | L160: 76.48
A161: 159 | B161: 10125284508 | C161: 伍荣翰 | D161: 336普定县补郎苗族乡水利和移民工作站 | E161: 01管理岗位 | F161: 第九考场 | G161: 100 | H161: 40.00 | I161: 76.60 | J161: 30.64 | K161: 70.64 | L161: 76.48
A162: 160 | B162: 10125293307 | C162: 温彦财 | D162: 336普定县补郎苗族乡水利和移民工作站 | E162: 01管理岗位 | F162: 第九考场 | G162: 99.5 | H162: 39.80 | I162: 73.00 | J162: 29.20 | K162: 69.00 | L162: 76.48
A163: 161 | B163: 10125291214 | C163: 李玉林 | D163: 336普定县补郎苗族乡水利和移民工作站 | E163: 01管理岗位 | F163: 第九考场 | G163: 96.5 | H163: 38.60 | I163: 74.80 | J163: 29.92 | K163: 68.52 | L163: 76.48
A164: 162 | B164: 10125244010 | C164: 曾加艳 | D164: 337普定县补郎苗族乡科技宣教文化信息服务中心 | E164: 01管理岗位 | F164: 第九考场 | G164: 95.5 | H164: 38.20 | I164: 73.60 | J164: 29.44 | K164: 67.64 | L164: 76.48
A165: 163 | B165: 10125280825 | C165: 吴发万 | D165: 337普定县补郎苗族乡科技宣教文化信息服务中心 | E165: 01管理岗位 | F165: 第九考场 | G165: 70 | H165: 28.00 | I165: 71.80 | J165: 28.72 | K165: 56.72 | L165: 76.48
A166: 164 | B166: 10125291204 | C166: 王丹 | D166: 338普定县补郎苗族乡扶贫工作站 | E166: 01管理岗位 | F166: 第九考场 | G166: 100.5 | H166: 40.20 | I166: 80.20 | J166: 32.08 | K166: 72.28 | L166: 76.48
A167: 165 | B167: 10125241016 | C167: 周康 | D167: 338普定县补郎苗族乡扶贫工作站 | E167: 01管理岗位 | F167: 第九考场 | G167: 98 | H167: 39.20 | I167: 82.80 | J167: 33.12 | K167: 72.32 | L167: 76.48
A168: 166 | B168: 10125241908 | C168: 肖正超 | D168: 338普定县补郎苗族乡扶贫工作站 | E168: 01管理岗位 | F168: 第九考场 | G168: 98 | H168: 39.20 | I168: 缺考 | J168: 缺考 | K168: 39.20 | L168: 76.48
A169: 167 | B169: 10125242213 | C169: 何晓念 | D169: 339普定县补郎苗族乡退役军人服务站 | E169: 01管理岗位 | F169: 第九考场 | G169: 105 | H169: 42.00 | I169: 83.60 | J169: =I169*40% -> 33.44 | K169: 75.44 | L169: 76.48
A170: 168 | B170: 10125290317 | C170: 李超 | D170: 339普定县补郎苗族乡退役军人服务站 | E170: 01管理岗位 | F170: 第九考场 | G170: 100.5 | H170: 40.20 | I170: 75.80 | J170: 30.32 | K170: 70.52 | L170: 76.48
A171: 169 | B171: 10125281419 | C171: 何宝 | D171: 339普定县补郎苗族乡退役军人服务站 | E171: 01管理岗位 | F171: 第九考场 | G171: 97 | H171: 38.80 | I171: 70.00 | J171: 28.00 | K171: 66.80 | L171: 76.48
A172: 170 | B172: 10125295619 | C172: 李健 | D172: 340普定县猴场苗族仡佬族乡水利和移民工作站 | E172: 01专业技术岗位 | F172: 第九考场 | G172: 105.5 | H172: 42.20 | I172: 72.80 | J172: 29.12 | K172: 71.32 | L172: 76.48
A173: 171 | B173: 10125294429 | C173: 孔腾 | D173: 340普定县猴场苗族仡佬族乡水利和移民工作站 | E173: 01专业技术岗位 | F173: 第九考场 | G173: 91 | H173: 36.40 | I173: 76.00 | J173: 30.40 | K173: 66.80 | L173: 76.48
A174: 172 | B174: 10125294213 | C174: 杨丹 | D174: 340普定县猴场苗族仡佬族乡水利和移民工作站 | E174: 01专业技术岗位 | F174: 第九考场 | G174: 81 | H174: 32.40 | I174: 76.40 | J174: 30.56 | K174: 62.96 | L174: 76.48
A175: 173 | B175: 10125284509 | C175: 李之鹏 | D175: 340普定县猴场苗族仡佬族乡水利和移民工作站 | E175: 01专业技术岗位 | F175: 第九考场 | G175: 80.5 | H175: 32.20 | I175: 79.80 | J175: 31.92 | K175: 64.12 | L175: 76.48
A176: 174 | B176: 10125295925 | C176: 李飞 | D176: 340普定县猴场苗族仡佬族乡水利和移民工作站 | E176: 01专业技术岗位 | F176: 第九考场 | G176: 79 | H176: 31.60 | I176: 缺考 | J176: 缺考 | K176: 31.60 | L176: 76.48
A177: 175 | B177: 10125294528 | C177: 王磊 | D177: 340普定县猴场苗族仡佬族乡水利和移民工作站 | E177: 01专业技术岗位 | F177: 第九考场 | G177: 77.5 | H177: 31.00 | I177: 70.40 | J177: =I177*40% -> 28.16 | K177: 59.16 | L177: 76.48
A178: 176 | B178: 10125240919 | C178: 李清清 | D178: 341普定县猫洞苗族仡佬族乡人力资源和社会保障服务中心 | E178: 01管理岗位 | F178: 第十考场 | G178: 97.5 | H178: 39.00 | I178: 70.00 | J178: =I178*40% -> 28.00 | K178: 67.00 | L178: 74.08
A179: 177 | B179: 10125291402 | C179: 赵云 | D179: 341普定县猫洞苗族仡佬族乡人力资源和社会保障服务中心 | E179: 01管理岗位 | F179: 第十考场 | G179: 97 | H179: 38.80 | I179: 71.00 | J179: =I179*40% -> 28.40 | K179: 67.20 | L179: 74.08
A180: 178 | B180: 10125244321 | C180: 徐海华 | D180: 341普定县猫洞苗族仡佬族乡人力资源和社会保障服务中心 | E180: 01管理岗位 | F180: 第十考场 | G180: 93 | H180: 37.20 | I180: 74.60 | J180: =I180*40% -> 29.84 | K180: 67.04 | L180: 74.08
A181: 179 | B181: 10125240412 | C181: 刘丹丹 | D181: 341普定县猫洞苗族仡佬族乡人力资源和社会保障服务中心 | E181: 02管理岗位 | F181: 第十考场 | G181: 116.5 | H181: 46.60 | I181: 74.60 | J181: =I181*40% -> 29.84 | K181: 76.44 | L181: 74.08
A182: 180 | B182: 10125293613 | C182: 邓文艳 | D182: 341普定县猫洞苗族仡佬族乡人力资源和社会保障服务中心 | E182: 02管理岗位 | F182: 第十考场 | G182: 104.5 | H182: 41.80 | I182: 缺考 | J182: 缺考 | K182: 41.80 | L182: 74.08
A183: 181 | B183: 10125281908 | C183: 潘宗圣 | D183: 341普定县猫洞苗族仡佬族乡人力资源和社会保障服务中心 | E183: 02管理岗位 | F183: 第十考场 | G183: 101 | H183: 40.40 | I183: 66.80 | J183: =I183*40% -> 26.72 | K183: 67.12 | L183: 74.08
A184: 182 | B184: 10125294309 | C184: 顾优 | D184: 342普定县猫洞苗族仡佬族乡科技宣教文化信息服务中心 | E184: 01管理岗位 | F184: 第十考场 | G184: 100 | H184: 40.00 | I184: 80.60 | J184: 32.24 | K184: 72.24 | L184: 74.08
A185: 183 | B185: 10125241207 | C185: 杨悟 | D185: 342普定县猫洞苗族仡佬族乡科技宣教文化信息服务中心 | E185: 01管理岗位 | F185: 第十考场 | G185: 96 | H185: 38.40 | I185: 77.00 | J185: 30.80 | K185: 69.20 | L185: 74.08
A186: 184 | B186: 10125242814 | C186: 董云啸 | D186: 342普定县猫洞苗族仡佬族乡科技宣教文化信息服务中心 | E186: 01管理岗位 | F186: 第十考场 | G186: 94 | H186: 37.60 | I186: 72.20 | J186: 28.88 | K186: 66.48 | L186: 74.08
A187: 185 | B187: 10125292528 | C187: 徐思思 | D187: 342普定县猫洞苗族仡佬族乡科技宣教文化信息服务中心 | E187: 01管理岗位 | F187: 第十考场 | G187: 94 | H187: 37.60 | I187: 78.00 | J187: 31.20 | K187: 68.80 | L187: 74.08
A188: 186 | B188: 10125280802 | C188: 龙后霖 | D188: 343普定县猫洞苗族仡佬族乡水利和移民工作站 | E188: 01专业技术岗位 | F188: 第十考场 | G188: 80 | H188: 32.00 | I188: 68.20 | J188: 27.28 | K188: 59.28 | L188: 74.08
A189: 187 | B189: 10125243110 | C189: 浦朝辉 | D189: 343普定县猫洞苗族仡佬族乡水利和移民工作站 | E189: 01专业技术岗位 | F189: 第十考场 | G189: 77 | H189: 30.80 | I189: 67.00 | J189: 26.80 | K189: 57.60 | L189: 74.08
A190: 188 | B190: 10125293421 | C190: 胡建昌 | D190: 343普定县猫洞苗族仡佬族乡水利和移民工作站 | E190: 01专业技术岗位 | F190: 第十考场 | G190: 76.5 | H190: 30.60 | I190: 74.40 | J190: 29.76 | K190: 60.36 | L190: 74.08
A191: 189 | B191: 10125294914 | C191: 聂平 | D191: 344普定县猫洞苗族仡佬族乡林业和环境保护工作站 | E191: 01管理岗位 | F191: 第十考场 | G191: 100 | H191: 40.00 | I191: 81.20 | J191: 32.48 | K191: 72.48 | L191: 74.08
A192: 190 | B192: 10125242515 | C192: 汪昌 | D192: 344普定县猫洞苗族仡佬族乡林业和环境保护工作站 | E192: 01管理岗位 | F192: 第十考场 | G192: 98 | H192: 39.20 | I192: 72.40 | J192: 28.96 | K192: 68.16 | L192: 74.08
A193: 191 | B193: 10125284306 | C193: 董晓磊 | D193: 344普定县猫洞苗族仡佬族乡林业和环境保护工作站 | E193: 01管理岗位 | F193: 第十考场 | G193: 97.5 | H193: 39.00 | I193: 73.00 | J193: 29.20 | K193: 68.20 | L193: 74.08
A194: 192 | B194: 10125294817 | C194: 余勇 | D194: 345普定县猫洞苗族仡佬族乡扶贫工作站 | E194: 01管理岗位 | F194: 第十考场 | G194: 100.5 | H194: 40.20 | I194: 76.80 | J194: 30.72 | K194: 70.92 | L194: 74.08
A195: 193 | B195: 10125241023 | C195: 何小梦 | D195: 345普定县猫洞苗族仡佬族乡扶贫工作站 | E195: 01管理岗位 | F195: 第十考场 | G195: 99 | H195: =G195/150%*60% -> 39.60 | I195: 81.20 | J195: 32.48 | K195: 72.08 | L195: 74.08
A196: 194 | B196: 10125291618 | C196: 徐雨 | D196: 345普定县猫洞苗族仡佬族乡扶贫工作站 | E196: 01管理岗位 | F196: 第十考场 | G196: 99 | H196: =G196/150%*60% -> 39.60 | I196: 70.60 | J196: 28.24 | K196: 67.84 | L196: 74.08
A197: 195 | B197: 10125244227 | C197: 勾琼 | D197: 345普定县猫洞苗族仡佬族乡扶贫工作站 | E197: 02专业技术岗位 | F197: 第十考场 | G197: 94.5 | H197: =G197/150%*60% -> 37.80 | I197: 72.00 | J197: 28.80 | K197: 66.60 | L197: 74.08
A198: 196 | B198: 10125291926 | C198: 王威 | D198: 345普定县猫洞苗族仡佬族乡扶贫工作站 | E198: 02专业技术岗位 | F198: 第十考场 | G198: 91.5 | H198: =G198/150%*60% -> 36.60 | I198: 75.20 | J198: 30.08 | K198: 66.68 | L198: 74.08
A199: 197 | B199: 10125284611 | C199: 陈猛 | D199: 345普定县猫洞苗族仡佬族乡扶贫工作站 | E199: 02专业技术岗位 | F199: 第十考场 | G199: 90.5 | H199: =G199/150%*60% -> 36.20 | I199: 78.80 | J199: 31.52 | K199: 67.72 | L199: 74.08
